[Event "Titled Tuesday Blitz April 18 Late 2023"]
[White "Sokolovsky, Yahli"]
[Black "Durarbayli, Vasif"]
[WhiteFideId "2820242"]
[BlackFideId "13402935"]
[WhiteElo "2316"]
[BlackElo "2551"]
[Result "0-1"]
[Round "02"]
[TimeControl "180+2"]
[Date "2023.04.18"]
[WhiteClock "0:00:07"]
[BlackClock "0:00:19"]

1. b3 {[%clk 0:03:00]}  d5 {[%clk 0:02:57]} 2. Bb2 {[%clk 0:03:01]}  c5 {[%clk 0:02:57]} 3. e3 {[%clk 0:03:02]}  Nf6 {[%clk 0:02:53]} 4. Nf3 {[%clk 0:03:02]}  a6 {[%clk 0:02:52]} 5. d4 {[%clk 0:03:02]}  Nc6 {[%clk 0:02:52]} 6. a3 {[%clk 0:03:02]}  e6 {[%clk 0:02:50]} 7. Bd3 {[%clk 0:03:03]}  b5 {[%clk 0:02:47]} 8. c4 {[%clk 0:02:57]}  bxc4 {[%clk 0:02:38]} 9. bxc4 {[%clk 0:02:57]}  Rb8 {[%clk 0:02:34]} 10. Qc2 {[%clk 0:02:30]}  Qb6 {[%clk 0:02:07]} 11. Bc3 {[%clk 0:02:29]}  cxd4 {[%clk 0:02:07]} 12. exd4 {[%clk 0:02:19]}  dxc4 {[%clk 0:01:54]} 13. Bxc4 {[%clk 0:02:20]}  Bd6 {[%clk 0:01:39]} 14. O-O {[%clk 0:02:16]}  O-O {[%clk 0:01:39]} 15. Nbd2 {[%clk 0:02:11]}  Bb7 {[%clk 0:01:39]} 16. d5 {[%clk 0:01:51]}  Nxd5 {[%clk 0:01:08]} 17. Ng5 {[%clk 0:01:50]}  g6 {[%clk 0:01:04]} 18. Nde4 {[%clk 0:01:51]}  Be7 {[%clk 0:01:02]} 19. Qd2 {[%clk 0:01:12]}  Nxc3 {[%clk 0:00:55]} 20. Qxc3 {[%clk 0:01:10]}  Qd4 {[%clk 0:00:53]} 21. Qh3 {[%clk 0:01:11]}  Qg7 {[%clk 0:00:47]} 22. Rae1 {[%clk 0:00:25]}  Nd4 {[%clk 0:00:39]} 23. Nf3 {[%clk 0:00:11]}  Nf5 {[%clk 0:00:38]} 24. a4 {[%clk 0:00:06]}  Rbc8 {[%clk 0:00:36]} 25. Bd3 {[%clk 0:00:06]}  Rc3 {[%clk 0:00:37]} 26. Rd1 {[%clk 0:00:06]}  Rxd3 {[%clk 0:00:35]} 27. Rxd3 {[%clk 0:00:07]}  Bxe4 {[%clk 0:00:36]} 28. Rd7 {[%clk 0:00:07]}  Bc6 {[%clk 0:00:33]} 29. Ra7 {[%clk 0:00:06]}  Ra8 {[%clk 0:00:24]} 30. Rc7 {[%clk 0:00:07]}  Bxa4 {[%clk 0:00:22]} 31. g4 {[%clk 0:00:07]}  Bd6 {[%clk 0:00:21]} 32. Rd7 {[%clk 0:00:08]}  Bxd7 {[%clk 0:00:20]} 33. gxf5 {[%clk 0:00:08]}  exf5 {[%clk 0:00:19]} 34. Rd1 {[%clk 0:00:09]}  Qf6 {[%clk 0:00:20]} 35. Qg2 {[%clk 0:00:08]}  Bc6 {[%clk 0:00:20]} 36. Rc1 {[%clk 0:00:07]}  Be4 {[%clk 0:00:19]} 37. Qg5 {[%clk 0:00:06]}  Qxg5+ {[%clk 0:00:19]} 38. Nxg5 {[%clk 0:00:07]}  a5 {[%clk 0:00:19]} 0-1


[Site "https://www.chess.com"]

[Event "Titled Tuesday Blitz April 18 Late 2023"]
[White "Fressinet, Laurent"]
[Black "Vlassov, Nikolai"]
[WhiteFideId "608742"]
[BlackFideId "4103360"]
[WhiteElo "2633"]
[BlackElo "2324"]
[Result "0-1"]
[Round "02"]
[TimeControl "180+2"]
[Date "2023.04.18"]
[WhiteClock "0:00:22"]
[BlackClock "0:00:11"]

1. e4 {[%clk 0:03:00]}  Nc6 {[%clk 0:02:58]} 2. Nf3 {[%clk 0:03:00]}  d5 {[%clk 0:02:58]} 3. exd5 {[%clk 0:03:01]}  Qxd5 {[%clk 0:02:58]} 4. Nc3 {[%clk 0:03:01]}  Qa5 {[%clk 0:02:58]} 5. Bb5 {[%clk 0:02:54]}  Bd7 {[%clk 0:02:58]} 6. O-O {[%clk 0:02:52]}  a6 {[%clk 0:02:58]} 7. b4 {[%clk 0:02:47]}  Qxb4 {[%clk 0:02:56]} 8. Rb1 {[%clk 0:02:47]}  Qa5 {[%clk 0:02:56]} 9. Bxc6 {[%clk 0:02:39]}  Bxc6 {[%clk 0:02:55]} 10. Nd4 {[%clk 0:02:40]}  Qc5 {[%clk 0:02:37]} 11. Nce2 {[%clk 0:02:19]}  e5 {[%clk 0:02:21]} 12. Nxc6 {[%clk 0:02:14]}  Qxc6 {[%clk 0:02:21]} 13. d4 {[%clk 0:02:15]}  O-O-O {[%clk 0:02:18]} 14. Be3 {[%clk 0:02:13]}  Nf6 {[%clk 0:02:15]} 15. c4 {[%clk 0:02:08]}  Qxc4 {[%clk 0:02:05]} 16. Rc1 {[%clk 0:02:04]}  Qxa2 {[%clk 0:02:05]} 17. Nc3 {[%clk 0:01:51]}  Qa5 {[%clk 0:02:01]} 18. Bg5 {[%clk 0:01:41]}  exd4 {[%clk 0:01:55]} 19. Bxf6 {[%clk 0:01:36]}  gxf6 {[%clk 0:01:55]} 20. Ne4 {[%clk 0:01:36]}  Rg8 {[%clk 0:01:41]} 21. Qb3 {[%clk 0:01:28]}  Rg6 {[%clk 0:01:16]} 22. Qxf7 {[%clk 0:01:19]}  f5 {[%clk 0:01:09]} 23. Ng3 {[%clk 0:01:14]}  Bd6 {[%clk 0:00:51]} 24. Nxf5 {[%clk 0:01:08]}  Qe5 {[%clk 0:00:44]} 25. g3 {[%clk 0:00:58]}  Kb8 {[%clk 0:00:29]} 26. Rfe1 {[%clk 0:00:53]}  Qf6 {[%clk 0:00:25]} 27. Nxd6 {[%clk 0:00:53]}  Qxd6 {[%clk 0:00:23]} 28. Qxh7 {[%clk 0:00:53]}  d3 {[%clk 0:00:20]} 29. Red1 {[%clk 0:00:52]}  Re6 {[%clk 0:00:16]} 30. Rd2 {[%clk 0:00:43]}  Re2 {[%clk 0:00:14]} 31. Rcd1 {[%clk 0:00:43]}  Rxd2 {[%clk 0:00:14]} 32. Rxd2 {[%clk 0:00:44]}  c5 {[%clk 0:00:14]} 33. Qf7 {[%clk 0:00:37]}  Qd4 {[%clk 0:00:10]} 34. h4 {[%clk 0:00:26]}  c4 {[%clk 0:00:11]} 35. h5 {[%clk 0:00:22]}  c3 {[%clk 0:00:11]} 0-1


[Site "https://www.chess.com"]

[Event "Titled Tuesday Blitz April 18 Late 2023"]
[White "Suleymanli, Aydin"]
[Black "Gubajdullin, Alexei"]
[WhiteFideId "13413937"]
[BlackFideId "4141202"]
[WhiteElo "2559"]
[BlackElo "2279"]
[Result "1-0"]
[Round "02"]
[TimeControl "180+2"]
[Date "2023.04.18"]
[WhiteClock "0:00:12"]
[BlackClock "0:00:01"]

1. e4 {[%clk 0:02:55]}  c6 {[%clk 0:02:59]} 2. Nf3 {[%clk 0:02:55]}  d5 {[%clk 0:02:58]} 3. d3 {[%clk 0:02:55]}  dxe4 {[%clk 0:02:52]} 4. dxe4 {[%clk 0:02:56]}  Qxd1+ {[%clk 0:02:51]} 5. Kxd1 {[%clk 0:02:57]}  g6 {[%clk 0:02:51]} 6. Ne1 {[%clk 0:02:56]}  Bh6 {[%clk 0:02:50]} 7. f3 {[%clk 0:02:55]}  f6 {[%clk 0:02:48]} 8. a4 {[%clk 0:02:52]}  Bxc1 {[%clk 0:02:46]} 9. Kxc1 {[%clk 0:02:51]}  a5 {[%clk 0:02:45]} 10. Nd2 {[%clk 0:02:51]}  Be6 {[%clk 0:02:42]} 11. Bc4 {[%clk 0:02:51]}  Bxc4 {[%clk 0:02:41]} 12. Nxc4 {[%clk 0:02:52]}  Nd7 {[%clk 0:02:40]} 13. Nd3 {[%clk 0:02:52]}  Nh6 {[%clk 0:02:39]} 14. h4 {[%clk 0:02:50]}  Nf7 {[%clk 0:02:36]} 15. h5 {[%clk 0:02:49]}  g5 {[%clk 0:02:29]} 16. Kd2 {[%clk 0:02:44]}  e6 {[%clk 0:02:28]} 17. Kc3 {[%clk 0:02:44]}  Ke7 {[%clk 0:02:27]} 18. Rhd1 {[%clk 0:02:24]}  Ra6 {[%clk 0:02:25]} 19. Ra3 {[%clk 0:02:23]}  Rha8 {[%clk 0:02:21]} 20. Rb3 {[%clk 0:02:23]}  Rb8 {[%clk 0:02:21]} 21. Na3 {[%clk 0:02:15]}  Nd6 {[%clk 0:02:15]} 22. Nc4 {[%clk 0:01:49]}  Nxc4 {[%clk 0:02:00]} 23. Kxc4 {[%clk 0:01:50]}  b5+ {[%clk 0:02:00]} 24. Kd4 {[%clk 0:01:45]}  c5+ {[%clk 0:01:49]} 25. Ke3 {[%clk 0:01:39]}  c4 {[%clk 0:01:47]} 26. Rxb5 {[%clk 0:01:33]}  cxd3 {[%clk 0:01:45]} 27. Rxd3 {[%clk 0:01:33]}  Rxb5 {[%clk 0:01:40]} 28. axb5 {[%clk 0:01:33]}  Rb6 {[%clk 0:01:40]} 29. c4 {[%clk 0:01:33]}  Nc5 {[%clk 0:01:40]} 30. Ra3 {[%clk 0:01:30]}  a4 {[%clk 0:01:39]} 31. Kd4 {[%clk 0:01:28]}  Kd6 {[%clk 0:01:24]} 32. Kc3 {[%clk 0:01:28]}  Ke5 {[%clk 0:01:16]} 33. Kb4 {[%clk 0:01:26]}  Kd4 {[%clk 0:01:16]} 34. Rc3 {[%clk 0:01:07]}  Rb8 {[%clk 0:00:52]} 35. Ka5 {[%clk 0:01:06]}  Nd3 {[%clk 0:00:46]} 36. Kxa4 {[%clk 0:00:54]}  Nxb2+ {[%clk 0:00:42]} 37. Kb4 {[%clk 0:00:53]}  Nd3+ {[%clk 0:00:40]} 38. Rxd3+ {[%clk 0:00:53]}  Kxd3 {[%clk 0:00:40]} 39. c5 {[%clk 0:00:54]}  Kd4 {[%clk 0:00:19]} 40. b6 {[%clk 0:00:51]}  f5 {[%clk 0:00:16]} 41. Kb5 {[%clk 0:00:36]}  fxe4 {[%clk 0:00:14]} 42. c6 {[%clk 0:00:36]}  e3 {[%clk 0:00:12]} 43. c7 {[%clk 0:00:37]}  Rc8 {[%clk 0:00:09]} 44. b7 {[%clk 0:00:36]}  Rxc7 {[%clk 0:00:10]} 45. b8=Q {[%clk 0:00:36]}  Rc2 {[%clk 0:00:10]} 46. Qd6+ {[%clk 0:00:34]}  Kc3 {[%clk 0:00:10]} 47. Qxe6 {[%clk 0:00:14]}  e2 {[%clk 0:00:09]} 48. Qe3+ {[%clk 0:00:13]}  Kb2 {[%clk 0:00:09]} 49. Kb4 {[%clk 0:00:12]}  h6 {[%clk 0:00:08]} 50. g3 {[%clk 0:00:12]}  Kb1 {[%clk 0:00:06]} 51. f4 {[%clk 0:00:12]}  Rb2+ {[%clk 0:00:04]} 52. Kc3 {[%clk 0:00:12]}  Ra2 {[%clk 0:00:04]} 53. Qe4+ {[%clk 0:00:11]}  Kc1 {[%clk 0:00:03]} 54. Qh1+ {[%clk 0:00:12]}  e1=Q+ {[%clk 0:00:01]} 55. Qxe1# {[%clk 0:00:12]} 1-0


[Site "https://www.chess.com"]

[Event "Titled Tuesday Blitz April 18 Late 2023"]
[White "Pichot, Alan"]
[Black "Loiacono, Antonio"]
[WhiteFideId "110973"]
[BlackFideId "895415"]
[WhiteElo "2573"]
[BlackElo "2257"]
[Result "1-0"]
[Round "02"]
[TimeControl "180+2"]
[Date "2023.04.18"]
[WhiteClock "0:02:30"]
[BlackClock "0:02:14"]

1. e4 {[%clk 0:03:00]}  e5 {[%clk 0:02:58]} 2. Nf3 {[%clk 0:03:01]}  Nc6 {[%clk 0:02:58]} 3. Bb5 {[%clk 0:03:01]}  g6 {[%clk 0:02:53]} 4. d4 {[%clk 0:02:58]}  exd4 {[%clk 0:02:47]} 5. Bg5 {[%clk 0:02:55]}  f6 {[%clk 0:02:45]} 6. Bf4 {[%clk 0:02:53]}  Bg7 {[%clk 0:02:45]} 7. Nxd4 {[%clk 0:02:48]}  f5 {[%clk 0:02:41]} 8. e5 {[%clk 0:02:32]}  Nxe5 {[%clk 0:02:29]} 9. Ne6 {[%clk 0:02:31]}  Qe7 {[%clk 0:02:23]} 10. Nxg7+ {[%clk 0:02:31]}  Qxg7 {[%clk 0:02:24]} 11. Qe2 {[%clk 0:02:31]}  c6 {[%clk 0:02:14]} 12. Bxe5 {[%clk 0:02:30]} 1-0


[Site "https://www.chess.com"]

[Event "Titled Tuesday Blitz April 18 Late 2023"]
[White "Perske, Thore"]
[Black "Hansen, Eric"]
[WhiteFideId "12902195"]
[BlackFideId "2606771"]
[WhiteElo "2336"]
[BlackElo "2561"]
[Result "0-1"]
[Round "02"]
[TimeControl "180+2"]
[Date "2023.04.18"]
[WhiteClock "0:00:06"]
[BlackClock "0:00:14"]

1. d4 {[%clk 0:02:59]}  Nf6 {[%clk 0:03:00]} 2. g3 {[%clk 0:03:00]}  d5 {[%clk 0:02:49]} 3. Bg2 {[%clk 0:02:59]}  c6 {[%clk 0:02:49]} 4. Nf3 {[%clk 0:02:59]}  Bf5 {[%clk 0:02:50]} 5. c4 {[%clk 0:03:00]}  e6 {[%clk 0:02:50]} 6. Nc3 {[%clk 0:03:00]}  Nbd7 {[%clk 0:02:41]} 7. Nh4 {[%clk 0:02:59]}  Bg4 {[%clk 0:02:38]} 8. h3 {[%clk 0:02:58]}  Bh5 {[%clk 0:02:38]} 9. g4 {[%clk 0:02:59]}  Bg6 {[%clk 0:02:26]} 10. Qb3 {[%clk 0:02:56]}  Qb6 {[%clk 0:02:21]} 11. Nxg6 {[%clk 0:02:56]}  hxg6 {[%clk 0:02:21]} 12. Bf4 {[%clk 0:02:53]}  Bb4 {[%clk 0:01:53]} 13. c5 {[%clk 0:02:49]}  Qa5 {[%clk 0:01:50]} 14. O-O {[%clk 0:02:46]}  b6 {[%clk 0:01:48]} 15. Na4 {[%clk 0:02:28]}  bxc5 {[%clk 0:01:37]} 16. a3 {[%clk 0:02:19]}  Bd2 {[%clk 0:01:37]} 17. Bxd2 {[%clk 0:01:58]}  Qxd2 {[%clk 0:01:37]} 18. dxc5 {[%clk 0:01:49]}  O-O {[%clk 0:01:35]} 19. Qd3 {[%clk 0:01:36]}  Qf4 {[%clk 0:01:26]} 20. b4 {[%clk 0:01:32]}  a5 {[%clk 0:01:26]} 21. e3 {[%clk 0:01:28]}  Ne5 {[%clk 0:01:24]} 22. Qe2 {[%clk 0:01:01]}  Qc4 {[%clk 0:01:15]} 23. Qb2 {[%clk 0:00:37]}  Nd3 {[%clk 0:01:11]} 24. Qd2 {[%clk 0:00:33]}  Ne4 {[%clk 0:01:11]} 25. Bxe4 {[%clk 0:00:31]}  Qxe4 {[%clk 0:01:11]} 26. f3 {[%clk 0:00:26]}  Qe5 {[%clk 0:00:56]} 27. Kg2 {[%clk 0:00:17]}  axb4 {[%clk 0:00:44]} 28. axb4 {[%clk 0:00:18]}  Rxa4 {[%clk 0:00:30]} 29. Rxa4 {[%clk 0:00:17]}  Nb2 {[%clk 0:00:31]} 30. Ra6 {[%clk 0:00:14]}  Nc4 {[%clk 0:00:31]} 31. Qe2 {[%clk 0:00:13]}  Nxe3+ {[%clk 0:00:31]} 32. Kf2 {[%clk 0:00:13]}  d4 {[%clk 0:00:31]} 33. Rfa1 {[%clk 0:00:09]}  Kh7 {[%clk 0:00:17]} 34. Ke1 {[%clk 0:00:09]}  d3 {[%clk 0:00:15]} 35. Qf2 {[%clk 0:00:06]}  Nc2+ {[%clk 0:00:14]} 36. Kd2 {[%clk 0:00:06]}  Nxa1 {[%clk 0:00:14]} 0-1


[Site "https://www.chess.com"]

[Event "Titled Tuesday Blitz April 18 Late 2023"]
[White "Rosen, Eric"]
[Black "Rustemov, Alexander"]
[WhiteFideId "2032562"]
[BlackFideId "4119002"]
[WhiteElo "2331"]
[BlackElo "2869"]
[Result "1-0"]
[Round "02"]
[TimeControl "180+2"]
[Date "2023.04.18"]
[WhiteClock "0:00:06"]
[BlackClock "0:00:36"]

1. e4 {[%clk 0:03:00]}  e6 {[%clk 0:03:00]} 2. d4 {[%clk 0:02:57]}  d5 {[%clk 0:03:00]} 3. e5 {[%clk 0:02:56]}  c5 {[%clk 0:03:00]} 4. c3 {[%clk 0:02:57]}  Qb6 {[%clk 0:03:00]} 5. Nf3 {[%clk 0:02:57]}  Bd7 {[%clk 0:03:01]} 6. Bd3 {[%clk 0:02:39]}  cxd4 {[%clk 0:03:00]} 7. O-O {[%clk 0:02:36]}  Nc6 {[%clk 0:02:59]} 8. Re1 {[%clk 0:02:35]}  Nge7 {[%clk 0:03:00]} 9. a3 {[%clk 0:02:15]}  Rc8 {[%clk 0:02:59]} 10. b4 {[%clk 0:02:12]}  a6 {[%clk 0:02:53]} 11. Bb2 {[%clk 0:02:04]}  dxc3 {[%clk 0:02:50]} 12. Nxc3 {[%clk 0:02:05]}  Ng6 {[%clk 0:02:46]} 13. h4 {[%clk 0:02:03]}  Be7 {[%clk 0:02:36]} 14. h5 {[%clk 0:01:59]}  Nf4 {[%clk 0:02:35]} 15. Bf1 {[%clk 0:01:51]}  Nxh5 {[%clk 0:02:33]} 16. Qd2 {[%clk 0:01:30]}  O-O {[%clk 0:02:22]} 17. Na4 {[%clk 0:01:28]}  Qa7 {[%clk 0:02:21]} 18. Nc5 {[%clk 0:01:28]}  Bxc5 {[%clk 0:02:15]} 19. bxc5 {[%clk 0:01:28]}  Qxc5 {[%clk 0:02:12]} 20. Qg5 {[%clk 0:01:27]}  g6 {[%clk 0:02:02]} 21. g4 {[%clk 0:01:21]}  Ng3 {[%clk 0:01:55]} 22. Rac1 {[%clk 0:01:11]}  Qb6 {[%clk 0:01:49]} 23. Qh6 {[%clk 0:01:11]}  f6 {[%clk 0:01:20]} 24. exf6 {[%clk 0:01:10]}  Rf7 {[%clk 0:01:15]} 25. Rb1 {[%clk 0:00:34]}  Ne4 {[%clk 0:01:09]} 26. Rxe4 {[%clk 0:00:35]}  dxe4 {[%clk 0:01:09]} 27. Ng5 {[%clk 0:00:35]}  Rcf8 {[%clk 0:01:06]} 28. Nxh7 {[%clk 0:00:20]}  Rxh7 {[%clk 0:00:45]} 29. Qxg6+ {[%clk 0:00:17]}  Kh8 {[%clk 0:00:45]} 30. f7+ {[%clk 0:00:06]}  e5 {[%clk 0:00:45]} 31. Qf6+ {[%clk 0:00:05]}  Rg7 {[%clk 0:00:37]} 32. Qh6+ {[%clk 0:00:06]}  Rh7 {[%clk 0:00:36]} 33. Qxf8# {[%clk 0:00:06]} 1-0


[Site "https://www.chess.com"]

[Event "Titled Tuesday Blitz April 18 Late 2023"]
[White "Omranalhosani21"]
[Black "Karacsonyi, Gellert"]
[BlackFideId "764620"]
[WhiteElo "2564"]
[BlackElo "2308"]
[Result "0-1"]
[Round "02"]
[TimeControl "180+2"]
[Date "2023.04.18"]
[WhiteClock "0:00:05"]
[BlackClock "0:00:32"]

1. Nf3 {[%clk 0:02:59]}  Nf6 {[%clk 0:02:59]} 2. g3 {[%clk 0:02:59]}  e6 {[%clk 0:03:00]} 3. Bg2 {[%clk 0:02:59]}  d5 {[%clk 0:03:00]} 4. d4 {[%clk 0:02:59]}  Be7 {[%clk 0:03:01]} 5. O-O {[%clk 0:02:59]}  O-O {[%clk 0:03:01]} 6. c4 {[%clk 0:03:00]}  dxc4 {[%clk 0:03:02]} 7. Qc2 {[%clk 0:02:58]}  a6 {[%clk 0:03:02]} 8. a4 {[%clk 0:02:53]}  Bd7 {[%clk 0:03:02]} 9. Qxc4 {[%clk 0:02:53]}  Bc6 {[%clk 0:03:03]} 10. Nc3 {[%clk 0:02:53]}  b5 {[%clk 0:03:00]} 11. Qd3 {[%clk 0:02:44]}  b4 {[%clk 0:03:00]} 12. Nb1 {[%clk 0:02:44]}  Be4 {[%clk 0:02:40]} 13. Qd1 {[%clk 0:02:43]}  c5 {[%clk 0:02:36]} 14. Nbd2 {[%clk 0:02:23]}  Bc6 {[%clk 0:02:29]} 15. dxc5 {[%clk 0:02:22]}  Bxc5 {[%clk 0:02:30]} 16. Nb3 {[%clk 0:02:22]}  Ba7 {[%clk 0:02:19]} 17. Qxd8 {[%clk 0:02:16]}  Rxd8 {[%clk 0:02:19]} 18. Bg5 {[%clk 0:02:11]}  Nbd7 {[%clk 0:02:19]} 19. Rfc1 {[%clk 0:02:01]}  Bd5 {[%clk 0:02:16]} 20. Nbd4 {[%clk 0:01:55]}  h6 {[%clk 0:02:14]} 21. Be3 {[%clk 0:01:52]}  Ng4 {[%clk 0:02:10]} 22. Nc2 {[%clk 0:01:40]}  Nxe3 {[%clk 0:02:09]} 23. Nxe3 {[%clk 0:01:40]}  Bxe3 {[%clk 0:02:04]} 24. fxe3 {[%clk 0:01:41]}  Rac8 {[%clk 0:02:04]} 25. Nd4 {[%clk 0:01:39]}  Nc5 {[%clk 0:01:56]} 26. Rc2 {[%clk 0:01:30]}  Nb3 {[%clk 0:01:23]} 27. Rxc8 {[%clk 0:01:22]}  Rxc8 {[%clk 0:01:24]} 28. Bxd5 {[%clk 0:01:04]}  Nxa1 {[%clk 0:01:17]} 29. Bb7 {[%clk 0:01:04]}  Rc1+ {[%clk 0:01:13]} 30. Kf2 {[%clk 0:01:02]}  Rb1 {[%clk 0:01:07]} 31. Bxa6 {[%clk 0:01:01]}  Rxb2 {[%clk 0:01:08]} 32. Bc4 {[%clk 0:01:01]}  Nc2 {[%clk 0:01:04]} 33. Nc6 {[%clk 0:00:24]}  Rb1 {[%clk 0:00:41]} 34. a5 {[%clk 0:00:16]}  Ra1 {[%clk 0:00:41]} 35. Bb3 {[%clk 0:00:15]}  Na3 {[%clk 0:00:36]} 36. Nxb4 {[%clk 0:00:11]}  Rb1 {[%clk 0:00:33]} 37. a6 {[%clk 0:00:11]}  Nb5 {[%clk 0:00:33]} 38. Nc2 {[%clk 0:00:05]}  Rxb3 {[%clk 0:00:32]} 0-1


[Site "https://www.chess.com"]

[Event "Titled Tuesday Blitz April 18 Late 2023"]
[White "Bayramov, Zaur"]
[Black "Drygalov, Andrey"]
[WhiteFideId "13405080"]
[BlackFideId "24171735"]
[WhiteElo "2195"]
[BlackElo "2466"]
[Result "0-1"]
[Round "02"]
[TimeControl "180+2"]
[Date "2023.04.18"]
[WhiteClock "0:00:33"]
[BlackClock "0:00:34"]

1. c4 {[%clk 0:03:00]}  e5 {[%clk 0:02:59]} 2. Nc3 {[%clk 0:03:00]}  Nf6 {[%clk 0:02:59]} 3. g3 {[%clk 0:03:01]}  d5 {[%clk 0:02:59]} 4. cxd5 {[%clk 0:03:01]}  Nxd5 {[%clk 0:02:59]} 5. Bg2 {[%clk 0:03:02]}  Nb6 {[%clk 0:02:59]} 6. Nf3 {[%clk 0:03:02]}  Nc6 {[%clk 0:03:00]} 7. O-O {[%clk 0:03:03]}  Be7 {[%clk 0:03:00]} 8. d3 {[%clk 0:03:03]}  O-O {[%clk 0:03:00]} 9. Be3 {[%clk 0:03:03]}  Re8 {[%clk 0:03:00]} 10. Rc1 {[%clk 0:03:03]}  Bf8 {[%clk 0:03:00]} 11. a3 {[%clk 0:03:02]}  Bg4 {[%clk 0:02:59]} 12. Ne4 {[%clk 0:02:51]}  Nd4 {[%clk 0:02:59]} 13. Bxd4 {[%clk 0:02:40]}  exd4 {[%clk 0:03:00]} 14. Nc5 {[%clk 0:02:37]}  Bxc5 {[%clk 0:02:58]} 15. Rxc5 {[%clk 0:02:36]}  c6 {[%clk 0:02:59]} 16. Re1 {[%clk 0:02:30]}  Qd6 {[%clk 0:02:57]} 17. Qc1 {[%clk 0:02:17]}  Re7 {[%clk 0:02:50]} 18. Rg5 {[%clk 0:02:13]}  Bd7 {[%clk 0:02:43]} 19. Nd2 {[%clk 0:02:09]}  f5 {[%clk 0:02:30]} 20. Nc4 {[%clk 0:02:03]}  Nxc4 {[%clk 0:02:29]} 21. Qxc4+ {[%clk 0:02:03]}  Be6 {[%clk 0:02:27]} 22. Qc1 {[%clk 0:02:03]}  h6 {[%clk 0:02:25]} 23. Rh5 {[%clk 0:01:58]}  Bf7 {[%clk 0:02:25]} 24. Rxf5 {[%clk 0:01:56]}  Rae8 {[%clk 0:02:24]} 25. Bf3 {[%clk 0:01:56]}  Bg6 {[%clk 0:02:17]} 26. Rf4 {[%clk 0:01:56]}  Bxd3 {[%clk 0:02:14]} 27. Qd2 {[%clk 0:01:56]}  Be4 {[%clk 0:02:09]} 28. Bxe4 {[%clk 0:01:41]}  Rxe4 {[%clk 0:02:09]} 29. Rxe4 {[%clk 0:01:41]}  Rxe4 {[%clk 0:02:10]} 30. Qd3 {[%clk 0:01:36]}  Qd5 {[%clk 0:02:01]} 31. Rc1 {[%clk 0:01:34]}  Re7 {[%clk 0:01:58]} 32. b4 {[%clk 0:01:32]}  Rd7 {[%clk 0:01:28]} 33. Rc5 {[%clk 0:01:30]}  Qe6 {[%clk 0:01:28]} 34. b5 {[%clk 0:01:18]}  cxb5 {[%clk 0:01:25]} 35. Qxb5 {[%clk 0:01:17]}  Re7 {[%clk 0:01:21]} 36. Rc2 {[%clk 0:01:11]}  Qe4 {[%clk 0:00:54]} 37. Rd2 {[%clk 0:01:10]}  Rc7 {[%clk 0:00:41]} 38. Qb3+ {[%clk 0:00:47]}  Kh8 {[%clk 0:00:41]} 39. Qd1 {[%clk 0:00:46]}  Rc4 {[%clk 0:00:40]} 40. h4 {[%clk 0:00:44]}  Qc6 {[%clk 0:00:39]} 41. Qb3 {[%clk 0:00:33]}  Rc3 {[%clk 0:00:34]} 0-1


[Site "https://www.chess.com"]

[Event "Titled Tuesday Blitz April 18 Late 2023"]
[White "Indjic, Aleksandar"]
[Black "Fiorito, Francisco"]
[WhiteFideId "911925"]
[BlackFideId "180165"]
[WhiteElo "2614"]
[BlackElo "2341"]
[Result "1-0"]
[Round "02"]
[TimeControl "180+2"]
[Date "2023.04.18"]
[WhiteClock "0:00:46"]
[BlackClock "0:00:23"]

1. e4 {[%clk 0:02:56]}  c5 {[%clk 0:02:56]} 2. Nf3 {[%clk 0:02:56]}  Nc6 {[%clk 0:02:56]} 3. Bb5 {[%clk 0:02:54]}  g6 {[%clk 0:02:56]} 4. Bxc6 {[%clk 0:02:49]}  dxc6 {[%clk 0:02:57]} 5. O-O {[%clk 0:02:48]}  Bg7 {[%clk 0:02:57]} 6. h3 {[%clk 0:02:48]}  Qc7 {[%clk 0:02:57]} 7. a4 {[%clk 0:02:45]}  a5 {[%clk 0:02:54]} 8. d3 {[%clk 0:02:40]}  e5 {[%clk 0:02:53]} 9. Nbd2 {[%clk 0:02:39]}  Ne7 {[%clk 0:02:48]} 10. Nc4 {[%clk 0:02:39]}  O-O {[%clk 0:02:46]} 11. Be3 {[%clk 0:02:30]}  b6 {[%clk 0:02:46]} 12. Re1 {[%clk 0:02:29]}  f6 {[%clk 0:02:44]} 13. c3 {[%clk 0:02:27]}  Rd8 {[%clk 0:02:43]} 14. Qb3 {[%clk 0:02:25]}  Be6 {[%clk 0:02:42]} 15. Qxb6 {[%clk 0:02:23]}  Qd7 {[%clk 0:01:45]} 16. Red1 {[%clk 0:02:20]}  Bf8 {[%clk 0:01:43]} 17. Qb3 {[%clk 0:02:15]}  Nc8 {[%clk 0:01:36]} 18. Qc2 {[%clk 0:02:13]}  Qf7 {[%clk 0:01:33]} 19. Ncd2 {[%clk 0:02:08]}  Rb8 {[%clk 0:01:32]} 20. d4 {[%clk 0:02:07]}  cxd4 {[%clk 0:01:30]} 21. cxd4 {[%clk 0:02:08]}  exd4 {[%clk 0:01:24]} 22. Nxd4 {[%clk 0:02:09]}  Ne7 {[%clk 0:01:20]} 23. Nxe6 {[%clk 0:02:08]}  Qxe6 {[%clk 0:01:21]} 24. Nc4 {[%clk 0:02:08]}  f5 {[%clk 0:01:13]} 25. Rxd8 {[%clk 0:01:32]}  Rxd8 {[%clk 0:01:12]} 26. Nxa5 {[%clk 0:01:29]}  fxe4 {[%clk 0:01:12]} 27. b4 {[%clk 0:01:29]}  Rc8 {[%clk 0:01:07]} 28. Bc5 {[%clk 0:01:24]}  Bg7 {[%clk 0:01:07]} 29. Re1 {[%clk 0:01:23]}  Nd5 {[%clk 0:01:05]} 30. Qxe4 {[%clk 0:01:22]}  Qf7 {[%clk 0:01:02]} 31. Qe6 {[%clk 0:01:21]}  Bc3 {[%clk 0:00:58]} 32. Qxf7+ {[%clk 0:01:21]}  Kxf7 {[%clk 0:00:58]} 33. Re4 {[%clk 0:01:21]}  h5 {[%clk 0:00:49]} 34. g3 {[%clk 0:01:20]}  g5 {[%clk 0:00:47]} 35. Kg2 {[%clk 0:01:20]}  Bf6 {[%clk 0:00:43]} 36. Nb7 {[%clk 0:01:20]}  Kg6 {[%clk 0:00:42]} 37. a5 {[%clk 0:01:17]}  Rb8 {[%clk 0:00:40]} 38. Nd6 {[%clk 0:01:10]}  Bc3 {[%clk 0:00:40]} 39. Re6+ {[%clk 0:01:04]}  Kh7 {[%clk 0:00:38]} 40. Ne4 {[%clk 0:00:51]}  Bxb4 {[%clk 0:00:36]} 41. Nxg5+ {[%clk 0:00:51]}  Kg7 {[%clk 0:00:36]} 42. Bd4+ {[%clk 0:00:48]}  Kg8 {[%clk 0:00:35]} 43. Rxc6 {[%clk 0:00:48]}  Bxa5 {[%clk 0:00:24]} 44. Rc5 {[%clk 0:00:48]}  Bb6 {[%clk 0:00:22]} 45. Rxd5 {[%clk 0:00:47]}  Bxd4 {[%clk 0:00:23]} 46. Rxd4 {[%clk 0:00:48]}  Kg7 {[%clk 0:00:24]} 47. Rd6 {[%clk 0:00:46]}  Rb2 {[%clk 0:00:23]} 1-0


[Site "https://www.chess.com"]